Cogmind - Beta 13 X1 @@@ ROGUE MODE // 2023.10.22 @ 21:29:08 Player: Plexion Result: Self-destructed Performance ------------- Evolutions (2) 1000 Regions Visited (3) 600 Robots Destroyed (55) 275 Value Destroyed (1566) 1566 Prototype IDs (12) 240 Alien Tech Used (0) 0 Bonus (55) 55 TOTAL SCORE: 3736 Bonus ------- High Alert Combat Kills 55 Cogmind --------- Core Integrity 391/550 Matter 294/300 Energy 265/265 System Corruption 0% Temperature Cool (0) Movement Treading (156) Location -8/Materials Parts ------- > --- POWER (1) -------- Improved Ion Engine > --- PROPULSION (4) --- Light Treads Light Treads Light Treads Advanced Treads > --- UTILITY (4) ------ High-capacity Storage Unit Advanced Targeting Computer Light Armor Plating Rainbow Chip > --- WEAPON (2+1) ----- Precision Beam Rifle (+) Minigun Gauss Rifle > --- INVENTORY (20) --- Light Treads Light Treads Light Treads Light Treads Light Treads Light Treads Advanced Heat Sink Large Storage Unit Melee Analysis Suite Light Armor Plating Light Armor Plating Power Bank Particle Gun Subdweller Laser Assault Rifle Heavy Assault Rifle Heavy Assault Rifle Minigun Multitool Peak State ------------ > --- POWER ------------ Subdweller Power Source Deuterium Engine > --- PROPULSION ------- Light Treads Light Treads Light Treads Light Treads Advanced Treads > --- UTILITY ---------- Advanced Heat Sink High-capacity Storage Unit Advanced Targeting Computer Rainbow Chip > --- WEAPON ----------- Minigun Gauss Rifle > --- INVENTORY -------- Ion Engine Large Storage Unit Melee Analysis Suite Power Bank Particle Gun Subdweller Laser Assault Rifle Heavy Assault Rifle Multitool [Rating: 43] Favorites ----------- Power Ion Engine Engine Ion Engine Propulsion Light Treads Treads Light Treads Utility Rainbow Chip Device Advanced Heat Sink Storage High-capacity Storage Unit Processor Rainbow Chip Protection Scrap Shield Weapon Assault Rifle Energy Gun Medium Laser Ballistic Gun Assault Rifle Special Weapon Mining Laser Build | -11 -10 -10 -8 ------- Run | Jun Mat Sub Mat Slots Evolved 4 | . . . 4 Power . | . . . . Propulsion 2 | . . . 2 Utility 2 | . . . 2 Weapon . | . . . . Parts Attached 43 | 6 2 11 24 Power 5 | 1 . 1 3 Engine 5 | 1 . 1 3 Core . | . . . . Reactor . | . . . . Propulsion 15 | 2 . 3 10 Treads 15 | 2 . 3 10 Leg . | . . . . Wheel . | . . . . Hover . | . . . . Flight . | . . . . Utility 12 | 1 2 3 6 Device 2 | . . . 2 Storage 4 | 1 1 . 2 Processor 3 | . 1 1 1 Hackware . | . . . . Protection 3 | . . 2 1 Artifact . | . . . . Weapon 11 | 2 . 4 5 Energy Gun 4 | 1 . 1 2 Energy Cannon . | . . . . Ballistic Gun 6 | 1 . 2 3 Ballistic Cannon . | . . . . Launcher . | . . . . Special Weapon 1 | . . 1 . Impact Weapon . | . . . . Slashing Weapon . | . . . . Piercing Weapon . | . . . . Special Melee Weapon . | . . . . Unidentified Prototypes 2 | . . . 2 Parts Lost 6 | . . . 6 Power 1 | . . . 1 Propulsion 3 | . . . 3 Utility 1 | . . . 1 Weapon 1 | . . . 1 Highest Loss Streak 2 | . . . 2 To Critical Strikes . | . . . . Average Slot Usage (%) 90 | . 99 93 83 Engine 13 | . 14 14 12 Treads 27 | . 28 27 27 Device 2 | . . . 5 Storage 9 | . 14 8 6 Processor 12 | . 13 10 12 Protection 2 | . . 4 2 Energy Gun 5 | . 14 4 2 Ballistic Gun 15 | . 14 21 12 Naked Turns . | . . . . Heaviest Build 81 | 14 29 36 81 Greatest Support 102 | 40 40 60 102 Greatest Overweight (x) 1 | . . . 1 Average Overweight (x) . | . . . . Largest Inventory Capacity 20 | 8 15 15 20 Average Capacity 14 | 7 10 11 19 Most Carried 20 | 3 11 15 20 Average Carried 8 | 1 6 10 8 Final Capacity 20 | 8 15 5 20 Final Carried 19 | 2 11 4 19 Class Distribution -------------------- 71% | Mutant 13% | Subdweller-Mutant 13% | Scavenger-Mutant Dominant Class ---------------- Mutant | -10/Materials Mutant | -10/Subcaves Mutant | -8/Materials Resources | -11 -10 -10 -8 ----------- Run | Jun Mat Sub Mat Matter Collected 1368 | 171 163 172 862 Remotely . | . . . . Salvage Created 2056 | . 203 214 1639 Parts 135 | . 17 13 105 Haulers Intercepted 4 | . 1 . 3 Recyclers Shooed 2 | . 2 . . Parts Field Recycled . | . . . . Retrieved Matter . | . . . . Parts Self-Destructed 9 | . . 9 . Prevented . | . . . . Kills | -11 -10 -10 -8 ------- Run | Jun Mat Sub Mat Combat Hostiles Destroyed 41 | . 5 5 31 Guns 40 | . 5 5 30 Classes Destroyed 12 | . 4 2 6 Worker 4 | . 1 . 3 Builder 2 | . . . 2 Hauler 4 | . 1 . 3 Recycler 1 | . . . 1 Operator 1 | . . . 1 Watcher 2 | . . . 2 Swarmer 11 | . 3 . 8 Grunt 17 | . 2 . 15 Sentry 7 | . . . 7 Hunter 1 | . . . 1 Artisan 1 | . . 1 . Subdweller 5 | . . 5 . Best Kill Streak 6 | . 3 3 6 Combat Bots Only 6 | . 3 3 6 Max Kills in Single Turn 2 | . 1 1 2 Gunslinging 1 | . . . 1 Exploded . | . . . . Melee . | . . . . Uniques/NPCs Destroyed . | . . . . Combat | -11 -10 -10 -8 -------- Run | Jun Mat Sub Mat Damage Taken 2139 | . 171 430 1538 Core 327 | . 15 153 159 Absorbed by Shields . | . . . . Core Remaining (%) 66 | 100 . 32 . Volleys Fired 151 | . 21 32 98 Largest 2 | . 2 2 2 Hottest 130 | . 70 130 125 Shots Fired 287 | . 42 50 195 Gun 283 | . 42 46 195 Cannon . | . . . . Launcher . | . . . . Special 4 | . . 4 . Kinetic 226 | . 21 42 163 Thermal 61 | . 21 8 32 Explosive . | . . . . Electromagnetic . | . . . . Robot Hit Streak 20 | . 6 17 20 Robot Miss Streak 4 | . 4 1 2 Penetration Max 1 | . . . 1 Secondary Targets 2 | . . . 2 Max Gunslinging Chain 1 | . . . 1 Shots Hit Robots 194 | . 24 28 142 Core Hits 84 | . 12 7 65 Critical Kills 2 | . . . 2 Critical Parts Destroyed 4 | . . . 4 Critical Strikes 8 | . 2 . 6 Burn 2 | . 2 . . Destroy 6 | . . . 6 Melee Attacks . | . . . . Impact . | . . . . Slashing . | . . . . Piercing . | . . . . Sneak Attacks . | . . . . Combat Hostiles . | . . . . Follow-up Attacks . | . . . . Damage Inflicted 3617 | . 303 446 2868 Guns 3596 | . 295 446 2855 Cannons . | . . . . Explosions . | . . . . Melee . | . . . . Ramming 21 | . 8 . 13 Kinetic 2887 | . 119 396 2372 Thermal 709 | . 176 50 483 Explosive . | . . . . Electromagnetic . | . . . . Impact . | . . . . Slashing . | . . . . Piercing . | . . . . Highest Corruption . | . . . . Average Corruption . | . . . . Corruption Purged . | . . . . Corruption Blocked . | . . . . Overload Shots . | . . . . Overflow Damage . | . . . . Projectiles . | . . . . Explosions . | . . . . Melee . | . . . . Knockbacks 1 | . . . 1 Impact 1 | . . . 1 Kinetic . | . . . . Secondary . | . . . . Self-Inflicted Damage . | . . . . Shots . | . . . . Rammed 4 | . 2 . 2 Targets Rammed 4 | . 2 . 2 Kicked . | . . . . Crushed . | . . . . Highest Temperature 360 | . 48 . 360 Average Temperature 62 | . 16 . 90 Received Heat Transfer 846 | . 12 24 810 Effects 3 | . . . 3 Shutdowns 1 | . . . 1 Interference 2 | . . . 2 Siege Activations . | . . . . Robots Corrupted . | . . . . Combat Hostiles . | . . . . Parts Fried . | . . . . Impact Corruptions . | . . . . Robots Melted 1 | . . . 1 Combat Hostiles 1 | . . . 1 Parts Melted 2 | . 1 1 . Heat Transferred 1389 | . 666 148 575 Parts Sabotaged . | . . . . Parts Stolen . | . . . . Parts Stripped . | . . . . Power Chain Reactions . | . . . . Missiles Intercepted . | . . . . Alert | -11 -10 -10 -8 ------- Run | Jun Mat Sub Mat Peak Influence 570 | . 183 . 570 Initial . | . . . . Average 144 | . 65 . 196 Maximum Alert Level 2 | . . . 2 Low Security (%) 76 | 100 100 . 62 Level 1 15 | . . . 24 Level 2 7 | . . . 12 Level 3 . | . . . . Level 4 . | . . . . Level 5 . | . . . . High Security . | . . . . Max Security . | . . . . Squads Dispatched 8 | . . . 8 Investigation . | . . . . Extermination . | . . . . Reinforcement 3 | . . . 3 Assault 2 | . . . 2 Garrison 3 | . . . 3 Intercept . | . . . . Searches Triggered . | . . . . Construction Impeded 1 | . . . 1 Haulers Reinforced . | . . . . Active Scanning Responses . | . . . . Cargo Convoy Interrupts . | . . . . Stealth | -11 -10 -10 -8 --------- Run | Jun Mat Sub Mat Distress Signals 1 | . 1 . . Communications Jammed . | . . . . Distress Signals . | . . . . Times Spotted 53 | . 10 5 38 Peak Tracking Total 6 | . 4 2 6 Tactical Retreats 2 | . 1 . 1 Traps | -11 -10 -10 -8 ------- Run | Jun Mat Sub Mat Traps Triggered 3 | . . 3 . Indirectly . | . . . . Trap Hack Attempts . | . . . . Triggered . | . . . . Disarmed . | . . . . Reprogrammed . | . . . . Reused . | . . . . Traps Extracted . | . . . . Installed . | . . . . Triggered . | . . . . Machines | -11 -10 -10 -8 ---------- Run | Jun Mat Sub Mat Machines Disabled 1 | . . 1 . Max in Single Turn 1 | . . 1 . Machines Repaired . | . . . . Machines Sabotaged . | . . . . Overloaded Fab Kills . | . . . . Hacking | -11 -10 -10 -8 --------- Run | Jun Mat Sub Mat Machines Accessed 7 | . 3 2 2 Terminals 5 | . 3 . 2 Fabricators . | . . . . Repair Stations . | . . . . Recycling Units . | . . . . Scanalyzers . | . . . . Garrison Access . | . . . . Total Hacks 17 | . 5 5 7 Successful 9 | . 2 5 2 Failed 7 | . 2 . 5 Catastrophic 2 | . . . 2 Database Lockouts 1 | . 1 . . Manual 10 | . 5 . 5 Terminals 12 | . 5 . 7 Fabricators . | . . . . Repair Stations . | . . . . Recycling Units . | . . . . Scanalyzers . | . . . . Garrison Access . | . . . . Terminal Hacks 9 | . 2 5 2 Record 4 | . . 4 . Robot Analysis 2 | . 1 . 1 Zone Layout 2 | . 1 . 1 Derelict Proto ID Bank 1 | . . 1 . Fabricator Hacks . | . . . . Repair Station Hacks . | . . . . Recycling Unit Hacks . | . . . . Scanalyzer . | . . . . Garrison Access Hacks . | . . . . Unauthorized Hacks . | . . . . Terminals . | . . . . Fabricators . | . . . . Repair Stations . | . . . . Recycling Units . | . . . . Scanalyzers . | . . . . Garrison Access . | . . . . Data Cores Recovered . | . . . . Used . | . . . . Hacking Detections 4 | . 2 . 2 Full Trace Events . | . . . . Feedback Events . | . . . . Feedback Blocked . | . . . . Robot Schematics Acquired . | . . . . Robots Built . | . . . . Authchips . | . . . . Time . | . . . . Total Robot Build Rating . | . . . . Part Schematics Acquired . | . . . . Parts Built . | . . . . Authchips . | . . . . Time . | . . . . Total Part Build Rating . | . . . . Parts Repaired . | . . . . Time . | . . . . Parts Recycled . | . . . . Recycled Matter . | . . . . Retrieved Matter . | . . . . Retrieved Components . | . . . . Parts Scanalyzed . | . . . . Part Schematics Acquired . | . . . . Parts Damaged . | . . . . Bothacking | -11 -10 -10 -8 ------------ Run | Jun Mat Sub Mat Used RIF Installer . | . . . . Robots Hacked . | . . . . Non-combat . | . . . . Combat . | . . . . Robot Hacks Applied . | . . . . Relay Couplers Released . | . . . . Fabnet Peak Effective % . | . . . . Robots Rewired . | . . . . Allies Hacked . | . . . . Hacks Repelled . | . . . . Allies | -11 -10 -10 -8 -------- Run | Jun Mat Sub Mat Total Allies . | . . . . Largest Group . | . . . . Highest-Rated Group . | . . . . Highest-Rated Ally . | . . . . Total Orders . | . . . . Ally Attacks . | . . . . Total Damage . | . . . . Kills . | . . . . Allies Corrupted . | . . . . Allies Melted . | . . . . Intel | -11 -10 -10 -8 ------- Run | Jun Mat Sub Mat Robot Analysis Total 2 | . 1 . 1 Derelict Logs Recovered 1 | . . 1 . Drone Launches . | . . . . Drone Recoveries . | . . . . Exploration | -11 -10 -10 -8 ------------- Run | Jun Mat Sub Mat Turns Passed 2889 | 73 657 955 1204 Spaces Moved 1410 | 41 362 514 493 Core 3 | 3 . . . Treads 1407 | 38 362 514 493 Legs . | . . . . Wheels . | . . . . Hover . | . . . . Flight . | . . . . Fastest Speed 50 | 50 160 160 155 Average Speed 161 | 151 160 160 165 Slowest Speed 240 | 160 160 160 240 Overloaded Moves . | . . . . Propulsion Burnouts . | . . . . Robots Hopped . | . . . . Cave-ins Triggered . | . . . . Exploration Rate (%) 33 | 4 55 29 45 Regions Visited 3 Branch Regions 1 Pre-discovered Areas . | . . . . Known Exits Taken . | . . . . Unknown Exits Taken 3 | 1 1 1 . Scrap Searched 1 | . . 1 . Spaces Dug . | . . . . Terrain Destroyed 4 | . . . 4 Melee . | . . . . Projectile 4 | . . . 4 AOE . | . . . . Terrain Rammed . | . . . . Walls Destroyed . | . . . . Machines Disabled . | . . . . Actions | -11 -10 -10 -8 --------- Run | Jun Mat Sub Mat Total 1728 | 49 397 590 692 Wait 65 | . 1 8 56 Move 1407 | 40 361 513 493 Hop . | . . . . Pick Up 32 | 3 9 11 9 Fast Attach 21 | 5 1 5 10 Attach 5 | 1 . 1 3 Detach 5 | . . 1 4 Swap 18 | . 1 5 12 Drop 18 | . 1 12 5 Fire 151 | . 21 32 98 Melee . | . . . . Ram . | . . . . Kick . | . . . . Crush 4 | . 2 . 2 Escape Stasis . | . . . . Rewire . | . . . . Trap . | . . . . Miscellaneous 2 | . . 2 . Route ------- -11/Junkyard -10/Materials (discovered 2 exits: [*Mat] / *Sub) -10/Subcaves -8/Materials (discovered 1 exit: [*Fac]) History --------- Turn | Location | Event 45 | -11/Junkyard | Discovered new exit (range 15) 74 | -11/Junkyard | Entered Materials 224 | -10/Materials | Central database locked down 311 | -10/Materials | Build established: Mutant 465 | -10/Materials | Discovered new exit (range 16) 495 | -10/Materials | Discovered new exit (range 8) 731 | -10/Materials | Entered Subcaves 746 | -10/Subcaves | Learned Materials terminal intel 1195 | -10/Subcaves | Discovered new exit (range 13) 1317 | -10/Subcaves | A Subdweller sparked back to life 1317 | -10/Subcaves | A Subdweller sparked back to life 1317 | -10/Subcaves | A Subdweller sparked back to life 1324 | -10/Subcaves | Core integrity fell below 50% 1366 | -10/Subcaves | Found Prototype Device 1458 | -10/Subcaves | Visited 4L-MR0's lab 1465 | -10/Subcaves | Identified Power Bank 1478 | -10/Subcaves | Found Rainbow Chip 1525 | -10/Subcaves | Attached Rainbow Chip, gained temporary slots: Power, Propulsion, Utility, Weapon 1667 | -10/Subcaves | Visited Clippyterm 1686 | -10/Subcaves | Entered Materials 1686 | -8/Materials | Evolved 4 slots: Propulsion x2, Utility x2 1687 | -8/Materials | Loaded intel: 12 terminal locations 1784 | -8/Materials | Build established: Subdweller-Mutant 2163 | -8/Materials | Discovered new exit (range 16) 2185 | -8/Materials | Build established: Mutant 2459 | -8/Materials | Garrison activated, responded to threat 2886 | -8/Materials | First assault squad dispatched 2890 | -8/Materials | Self-destructed Last Messages --------------- 02791_ Slammed into K-01 Serf. 02794_ Acquired Lgt. Armor Plating. 02799_ Acquired Hvy. Assault Rifle. 02800_ Y-45 Defender destroyed. 02810_ Acquired 54 matter. 02817_ Acquired Imp. Ion Engine. 02819_ Dropped Ion Engine. 02819_ Dropped Deuterium Engine. 02820_ Dropped Lgt. Deuterium Engine. 02831_ Acquired 54 matter. 02837_ Acquired Minigun. 02840_ Y-45 Defender destroyed. 02840_ A-02 Transporter destroyed. 02852_ Acquired Prototype Energy Gun. 02852_ Identified Prc. Beam Rifle. 02857_ Acquired 53 matter. 02862_ Acquired 4 matter. 02878_ K-01 Serf collects debris. 02886_ ALERT: Significant disruption in Zone 3M, multiple assault carriers dispatched. Map ----- +----------------------------------------------------+ | %# #???????????????????????????????????? | | !# "T" #???????????????????????????????????? | | + #???????????????????????????????????? | | # / #???????????????????????????????????? | | = #####+#########################???????????????? | | !%! +???????????????? | | ##+##+## #########################???????????????? | | ## #???????????????????????????????????????? | | ## #???????????????????????????????????????? | | ##+#########???????????????????????????????? | | ##!""" """ #######?????????????????????????? | | ##=""" """ # ############??????????????? | | ## """ """[# ????????????? | | ########* [[ %+ ! ????????????? | | ???????#! != #! **!%* ????????????? | | ????####%!*= # * ###+########??????????????? | | ????# + [[ ## ##?????????????????????????? | | ????# ## !* ## #??????????????????????????? | | ???????############ #??????????????????????????? | | ??????????????????# #??????????????????????????? | | ?##########???????# #??????????????????????????? | | ?# !#???????#! #??""T""???????????????????? | | ?# """ #??????## ##?"""""???????????????????? | | ## """ ######## ! #?????????????????????????? | | # """ *#%[[ ###########???????????????? | | # [ +[ = @ T????????? | | # """ !#*= ###########???????????????? | | # """ [ ####+### #?????????????????????????? | | # """ #??????###+###?????????????????????????? | | # /#??????? ??????????????????????????? | | ##########??????# T #????????????????????????? | | #???????????????# ! #????????????????????????? | | ########?????????# [ #????????????????????????? | | #?????????# #????????????????????????? | | %% #?????????# """ #????????????????????????? | | [%= #?????????# """ #????????????????????????? | | "=%= #?????????# """ #??????????????????T?????? | | " !* #?????????# #????????????????????????? | | " #?????????# ??? #????????????????????????? | | #?????????# ????#????????????????????????? | | #?????????# ?????????????????????????????? | | " #?????????# ?????????????????????????????? | | " #?????????##??????????????????????????????? | | " #???????????"""???????????????????????????? | | #???????????"T"???????????????????????????? | | ?????????????????????????????????????????? | | ? ????????????????????????????????????????? | | ##? ?????????????????????????????????????????? | | ????/????????????????????????????????????????????? | | ?????????????????????????????????????????????????? | +----------------------------------------------------+ Best States ------------- Heat Dissipation 50 Energy Generation 24 Energy Capacity 375 Matter Stores 300 Matter Capacity 300 Sight Range 16 Terrain Scan Density 10 Armor Coverage 800 Evasion (%) 40 Targeting Accuracy 8 Recoil Reduction 5 Item Schematics ----------------- None Robot Schematics ------------------ None Fabricated ------------ Nothing Alien Tech Used ----------------- None Achievements -------------- None Challenges ------------ None Game ------ Seed IntegrityPortableDrive Manual? 0 Play Time 00:21:47 Cumulative 458.0 hours Start 2023.10.22 @ 21:08:20 End 2023.10.22 @ 21:29:08 Sessions 1 Manual Loads 0 Difficulty Rogue Special Mode None Game No. 537 Rogue 450 Adventurer 87 Explorer 0 Win Type - Total 26 Types 8/0/15/1/1/0/1/0/0 Lore% 89 Gallery% 92 Achievement% 76 Wizard Run 0 Options --------- ASCII 0 Keyboard 1 Movement Numpad Keybinds 0 Fullscreen 1 Font 18/SmallcapsGlow Map View 76x50 Tactical HUD 1 Map Filters NONE Filters NONE Steam 1 RUN: ddf58cbb-5c00-4956-8961-62cad4b45390